bitfinex-derivatives/quotes_BTCF0:USTF0_20251115
["timestamp","ask_amount","ask_price","bid_price","bid_amount"]
[1763227373081,0.03761117,96086.0,96085.0,0.0435]
[1763227373269,0.00026018,96086.0,96085.0,0.0435]
[1763227374276,0.03735613,96091.0,96089.0,0.05659]
[1763227374478,0.03735613,96091.0,96090.0,0.0435]
[1763227374673,0.03735613,96091.0,96090.0,0.04569803]
[1763227374877,0.01287,96110.0,96092.0,0.0435]
[1763227374878,0.03735613,96093.0,96092.0,0.0435]
[1763227375076,0.05597661,96099.0,96098.0,0.0435]
[1763227375077,0.10123661,96099.0,96098.0,0.0435]
[1763227375682,0.04526,96099.0,96098.0,0.0435]
[1763227376083,0.07812515,96099.0,96098.0,0.0435]
[1763227376284,0.04526,96099.0,96098.0,0.0435]
[1763227376688,0.02311,96099.0,96098.0,0.0435]
[1763227377277,0.04626,96099.0,96098.0,0.0435]
[1763227377477,0.10227515,96099.0,96098.0,0.0435]
[1763227377879,0.04626,96099.0,96098.0,0.0435]
[1763227380478,0.02311,96099.0,96098.0,0.0435]
[1763227380680,0.04382,96099.0,96098.0,0.0435]
[1763227380876,0.04282,96093.0,96092.0,0.40656]
[1763227382289,0.04382,96093.0,96092.0,0.40656]
[1763227382598,0.04382,96093.0,96092.0,0.3608]
[1763227382781,0.04282,96090.0,96089.0,0.00015615]
[1763227383381,0.04282,96090.0,96089.0,0.04591615]
[1763227383684,0.001,96093.0,96092.0,0.04576]
[1763227383993,0.08117178,96093.0,96092.0,0.04576]
[1763227384186,0.04282,96093.0,96092.0,0.04576]
[1763227385284,0.04382,96093.0,96092.0,0.04576]
[1763227387290,0.04282,96091.0,96090.0,0.00219803]
[1763227387492,0.11751098,96091.0,96090.0,0.00219803]
[1763227387995,0.04282,96091.0,96090.0,0.00219803]
[1763227388290,0.04282,96091.0,96090.0,0.02523803]
[1763227388484,0.04382,96091.0,96090.0,0.02523803]
[1763227389594,0.04382,96091.0,96090.0,0.00219803]
[1763227389890,0.04382,96091.0,96090.0,0.04795803]
[1763227391084,0.02276,96091.0,96090.0,0.04795803]
[1763227391482,0.001,96091.0,96090.0,0.04795803]
[1763227393389,0.00988574,96102.0,96101.0,0.04517]
[1763227393390,0.12905672,96102.0,96101.0,0.04517]
[1763227393584,0.11917098,96102.0,96101.0,0.40597]
[1763227394188,0.1106945,96102.0,96101.0,0.40597]
[1763227394792,0.05456337,96102.0,96101.0,0.40597]
[1763227394988,0.04429615,96108.0,96107.0,0.0445]
[1763227395382,0.00015615,96108.0,96107.0,0.0445]
[1763227396190,0.03740071,96112.0,96110.0,0.00219803]
[1763227396793,0.01278,96120.0,96110.0,0.00219803]
[1763227396794,0.03740071,96114.0,96110.0,0.00219803]
[1763227396990,0.03740071,96115.0,96113.0,0.3608]
[1763227397183,0.03740071,96117.0,96113.0,0.3608]
[1763227397383,0.05018071,96120.0,96113.0,0.3608]
[1763227397694,0.03740071,96122.0,96113.0,0.3608]
[1763227398289,0.0375035,96124.0,96113.0,0.3608]
[1763227398595,0.00010279,96124.0,96113.0,0.3608]
[1763227399993,0.00010279,96124.0,96123.0,0.3608]
[1763227401591,2.87e-06,96126.0,96123.0,0.3608]
[1763227401791,0.01278,96138.0,96123.0,0.3608]
[1763227401996,0.01278,96138.0,96137.0,0.3608]
[1763227403098,0.07160071,96144.0,96140.0,0.00219803]
[1763227403291,0.0342,96144.0,96140.0,0.00219803]
[1763227403594,0.0342,96144.0,96140.0,0.36299803]
[1763227403796,0.04414,96141.0,96140.0,0.36299803]
[1763227404389,0.01278,96144.0,96140.0,0.36299803]
[1763227404589,0.001,96144.0,96140.0,0.36299803]
[1763227405298,0.05692,96152.0,96140.0,0.36299803]
[1763227405498,0.0342,96152.0,96151.0,0.3608]
[1763227405690,0.01278,96152.0,96151.0,0.3608]
[1763227405890,0.0342,96152.0,96151.0,0.3608]
[1763227406198,0.05692,96152.0,96151.0,0.3608]
[1763227406588,0.0342,96152.0,96151.0,0.3608]
[1763227406793,0.01278,96152.0,96151.0,0.3608]
[1763227407095,0.005,96156.0,96151.0,0.3608]
[1763227407888,0.005,96156.0,96152.0,0.3608]
[1763227408492,0.03740071,96178.0,96152.0,0.3608]
[1763227408693,0.03740071,96178.0,96134.0,0.0495426]
[1763227408694,0.05044071,96192.0,96166.0,0.1040648]
[1763227408894,0.03740071,96195.0,96180.0,0.00219803]
[1763227409098,0.005,96196.0,96180.0,0.00219803]
[1763227409295,0.005,96196.0,96195.0,0.3608]
[1763227410104,0.04885,96196.0,96195.0,0.3608]
[1763227410294,0.005,96196.0,96195.0,0.3608]
[1763227410809,0.01304,96208.0,96195.0,0.3608]
[1763227411098,0.02141986,96206.0,96205.0,0.3608]
[1763227411301,0.04410986,96206.0,96205.0,0.3608]
[1763227411600,0.02141986,96206.0,96205.0,0.3608]
[1763227412191,0.00025986,96206.0,96205.0,0.3608]
[1763227412393,0.00025986,96206.0,96200.0,0.00219803]
[1763227412394,0.02141986,96206.0,96200.0,0.00219803]
[1763227412591,0.00025986,96206.0,96205.0,0.3608]
[1763227413691,0.05689,96228.0,96205.0,0.3608]
[1763227413904,0.05689,96228.0,96227.0,0.3608]
[1763227416305,0.04385,96220.0,96219.0,0.3608]
[1763227417808,0.04385,96208.0,96207.0,0.00015597]
[1763227418307,0.01304,96210.0,96205.0,0.3608]
[1763227418308,0.04385,96206.0,96205.0,0.32595597]
[1763227419204,0.04385,96201.0,96200.0,0.00219803]
[1763227419706,0.04385,96197.0,96196.0,0.3608]
[1763227421310,0.04385,96197.0,96196.0,0.40401]
[1763227421815,0.01319509,96210.0,96200.0,0.04540803]
[1763227421816,0.04385,96201.0,96200.0,0.04540803]
[1763227422224,0.00015509,96210.0,96209.0,0.04321]
[1763227423116,0.00240071,96251.0,96232.0,0.03554]
[1763227423320,0.14905494,96262.0,96235.0,0.03554]
[1763227423321,0.01304,96240.0,96235.0,0.03554]
[1763227424205,0.01304,96240.0,96235.0,0.39634]
[1763227424410,0.3608,96259.0,96235.0,0.39634]
[1763227424614,0.01027186,96261.0,96245.0,0.03554]
[1763227424813,0.01027186,96261.0,96245.0,0.39634]
[1763227425016,0.01304,96250.0,96245.0,0.39634]
[1763227425208,0.04410975,96246.0,96245.0,0.37857]
[1763227425816,0.04410975,96246.0,96245.0,0.39134]
[1763227426014,0.04410975,96246.0,96245.0,0.37857]
[1763227426215,0.04410975,96246.0,96245.0,0.3608]
[1763227426718,0.04510975,96246.0,96245.0,0.38634]
[1763227427029,0.00125975,96246.0,96245.0,0.38634]
[1763227427314,0.02616,96276.0,96275.0,0.02302]
[1763227427818,0.005,96276.0,96275.0,0.02302]
[1763227429013,0.005,96276.0,96270.0,0.00219803]
[1763227429014,0.00025964,96286.0,96285.0,0.02302]
[1763227429220,0.00025964,96286.0,96285.0,0.38382]
[1763227430122,0.00125964,96286.0,96285.0,0.38382]
[1763227430322,0.04385,96281.0,96280.0,0.00219803]
[1763227430620,0.02116,96281.0,96280.0,0.01521803]
[1763227430814,0.04385,96281.0,96280.0,0.00219803]
[1763227431116,0.04385,96281.0,96266.0,0.00015588]
[1763227431117,0.01304,96272.0,96268.0,0.3608]
[1763227431323,0.04385,96271.0,96270.0,0.00219803]
[1763227432320,0.04485,96281.0,96280.0,0.01302]
[1763227432624,0.04485,96281.0,96280.0,0.01521803]
[1763227432822,0.04485,96281.0,96280.0,0.00870803]
[1763227433022,0.04385,96281.0,96280.0,0.00219803]
[1763227433816,0.04485,96281.0,96280.0,0.00219803]
[1763227434020,0.01304,96276.0,96267.0,0.3608]
[1763227434220,0.02116,96271.0,96270.0,0.01521803]
[1763227434824,0.04385,96271.0,96270.0,0.01521803]
[1763227435627,0.0342,96276.0,96275.0,0.01302]
[1763227435820,0.001,96281.0,96280.0,0.01302]
[1763227436020,0.01304,96283.0,96282.0,0.01302]
[1763227436219,0.05689,96283.0,96282.0,0.01302]
[1763227436618,0.05538737,96303.0,96285.0,0.01302]
[1763227436825,0.05538737,96306.0,96285.0,0.37382]
[1763227437019,0.3608,96307.0,96285.0,0.37382]
[1763227438624,0.04441964,96286.0,96285.0,0.3608]
[1763227438822,0.02167,96281.0,96280.0,0.01521803]
[1763227439518,0.02192964,96286.0,96285.0,0.01302]
[1763227439820,0.00025964,96286.0,96285.0,0.37382]
[1763227440414,0.04341964,96286.0,96285.0,0.37382]
[1763227440827,0.04341964,96286.0,96285.0,0.3608]
[1763227442325,0.04341964,96286.0,96285.0,0.36731]
[1763227442527,0.04341964,96286.0,96285.0,0.37382]
[1763227443122,0.04341964,96286.0,96285.0,0.3608]
[1763227443324,0.04316,96281.0,96280.0,0.00219803]
[1763227444619,0.04316,96281.0,96280.0,0.00970803]
[1763227445320,0.00025964,96286.0,96285.0,0.01302]
[1763227445528,0.00025964,96286.0,96285.0,0.37382]
[1763227446026,0.37384,96305.0,96285.0,0.37382]
[1763227446228,0.03494,96312.0,96311.0,0.0125]
[1763227446619,0.03494,96312.0,96310.0,0.00219803]
[1763227446620,0.3608,96324.0,96315.0,0.0125]
[1763227447222,11.99252341,96320.0,96319.0,0.0125]
[1763227448526,11.99352341,96320.0,96319.0,0.0125]
[1763227448930,0.04316,96314.0,96313.0,0.3733]
[1763227449326,0.04316,96314.0,96313.0,0.3608]
[1763227449522,0.04316,96314.0,96306.0,0.0001558]
[1763227449523,0.04316,96307.0,96306.0,0.0001558]
[1763227449726,11.99352341,96320.0,96319.0,0.00625]
[1763227449923,11.99352341,96320.0,96313.0,0.36705]
[1763227449924,0.04316,96314.0,96313.0,0.36705]
[1763227450133,0.04316,96314.0,96313.0,0.3608]
[1763227450528,0.04316,96307.0,96306.0,0.0001558]
[1763227450731,0.04316,96307.0,96306.0,0.0126558]
[1763227451130,0.04316,96307.0,96306.0,0.0001558]
[1763227451826,0.04316,96307.0,96306.0,0.0126558]
[1763227452330,0.04316,96307.0,96306.0,0.0001558]
[1763227452532,0.04316,96307.0,96306.0,0.0126558]
[1763227452837,11.99252341,96320.0,96318.0,0.0125]
[1763227453128,11.99252341,96320.0,96319.0,0.0125]
[1763227454027,11.96757351,96320.0,96319.0,0.0125]
[1763227456636,7.48575223,96320.0,96319.0,0.0125]
[1763227456943,0.05576506,96393.0,96360.0,0.00999999]
[1763227457169,11.0481,96425.0,96391.0,0.02763545]
[1763227457430,11.0481,96425.0,96399.0,0.3608]
[1763227457431,0.05714,96400.0,96399.0,0.3608]
[1763227457626,0.04567,96400.0,96399.0,0.39064003]
[1763227457823,0.00039378,96405.0,96400.0,0.00219803]
[1763227458131,0.00039378,96405.0,96401.0,0.02984003]
[1763227458332,0.01286,96420.0,96402.0,0.02984003]
[1763227458532,1.60286,96420.0,96419.0,0.3608]
[1763227459033,1.60286,96420.0,96419.0,0.39126434]
[1763227459932,0.00286,96420.0,96419.0,0.39126434]
[1763227460126,0.51046,96420.0,96419.0,0.39126434]
[1763227460733,0.001,96420.0,96419.0,0.75206434]
[1763227461240,0.001,96420.0,96419.0,0.7532606]
[1763227461838,0.50656,96433.0,96420.0,0.1037911]
[1763227462040,0.50656,96433.0,96422.0,0.103789]
[1763227462234,0.50648,96431.0,96423.0,0.0316606]
[1763227462435,0.50648,96431.0,96420.0,0.00219803]
[1763227462436,0.50648,96431.0,96424.0,0.0316606]
[1763227462836,0.50636,96431.0,96424.0,0.0316606]
[1763227463038,0.01286,96444.0,96424.0,0.0316606]
[1763227463937,0.3608,96472.0,96424.0,0.0316606]
[1763227464244,0.50632,96463.0,96424.0,0.56520152]
[1763227464536,0.50632,96463.0,96424.0,0.5379806]
[1763227464845,11.0491,96425.0,96424.0,0.5379806]
[1763227466941,11.0491,96425.0,96424.0,0.53720349]
[1763227467136,11.0491,96425.0,96424.0,0.50632]
[1763227470149,0.26458,96420.0,96419.0,0.7216]
[1763227470648,11.0491,96425.0,96420.0,0.00219803]
[1763227471649,11.0481,96425.0,96420.0,0.00219803]
[1763227472443,11.0491,96425.0,96420.0,0.00219803]
[1763227472644,0.26458,96420.0,96419.0,0.7216]
[1763227473569,0.26458,96420.0,96419.0,0.69920398]
[1763227474146,0.26458,96420.0,96396.0,0.00015559]
[1763227474147,0.26458,96406.0,96405.0,0.3608]
[1763227474358,0.25211715,96406.0,96405.0,0.3608]
[1763227474857,0.25237647,96406.0,96405.0,0.3608]
[1763227475550,0.25337647,96406.0,96405.0,0.3608]
[1763227475747,0.13055,96396.0,96383.0,0.02721677]
[1763227475946,0.13055,96380.0,96379.0,0.03519]
[1763227476142,1.55913043,96390.0,96389.0,0.03519]
[1763227476346,1.55913043,96390.0,96389.0,0.10135758]
[1763227476347,1.19833043,96390.0,96389.0,0.10135758]
[1763227476547,0.0821,96390.0,96389.0,0.10135758]
[1763227476759,0.50604,96398.0,96397.0,0.03519]
[1763227477142,0.13055,96398.0,96397.0,0.03519]
[1763227477347,0.50604,96401.0,96388.0,0.00015559]
[1763227477348,0.63659,96401.0,96400.0,0.03738803]
[1763227477863,0.63659,96401.0,96400.0,0.07257803]
[1763227478160,0.77062,96401.0,96400.0,0.03325546]
[1763227478542,0.26558,96401.0,96400.0,0.03325546]
[1763227480055,0.13155,96401.0,96400.0,0.10363546]
[1763227480261,0.13155,96401.0,96400.0,0.03325546]
[1763227480262,0.26558,96401.0,96400.0,0.03325546]
[1763227480461,0.26458,96389.0,96388.0,0.00015559]
[1763227480655,0.26458,96389.0,96388.0,0.03127087]
[1763227482057,0.26458,96379.0,96378.0,0.03642359]
[1763227482256,0.23964814,96379.0,96378.0,0.03128369]
[1763227484370,0.22718026,96379.0,96378.0,0.03128369]
[1763227484562,0.26458,96370.0,96369.0,0.00015559]
[1763227485365,0.26458,96370.0,96369.0,0.05529582]
[1763227485563,0.26468575,96370.0,96369.0,0.00115559]
[1763227486168,0.26468575,96370.0,96369.0,0.26331559]
[1763227486677,0.26468575,96370.0,96369.0,0.00115559]
[1763227488075,0.26468575,96370.0,96355.0,0.13108]
[1763227488076,0.26458,96356.0,96355.0,0.13108]
[1763227488471,0.26458,96351.0,96350.0,0.00219803]
[1763227489070,0.26458,96351.0,96350.0,1.50219803]
[1763227489275,0.26358,96351.0,96350.0,1.50219803]
[1763227489573,0.26358,96351.0,96341.0,0.00015568]
[1763227489574,0.26458,96342.0,96341.0,0.00015568]
[1763227489784,0.26458,96342.0,96341.0,0.13223568]
[1763227490080,0.26458,96342.0,96341.0,0.00015568]
[1763227490477,0.86688,96344.0,96340.0,0.05518381]
[1763227490683,0.86688,96344.0,96339.0,0.05518381]
[1763227490684,0.26458,96340.0,96339.0,0.05518381]
[1763227490975,0.59223302,96340.0,96339.0,0.05518381]
[1763227491281,0.86688,96344.0,96330.0,0.00219803]
[1763227491282,0.26458,96334.0,96333.0,0.05518381]
[1763227491480,0.26458,96334.0,96333.0,1.55518381]
[1763227491877,0.26258,96334.0,96333.0,1.5]
[1763227492575,0.26258,96334.0,96331.0,0.05518381]
[1763227492576,0.26458,96332.0,96331.0,0.05518381]
[1763227492777,0.26458,96331.0,96330.0,0.05738184]
[1763227493173,0.26458,96331.0,96330.0,1.50219803]
[1763227494175,9.524e-05,96332.0,96331.0,0.27178]
[1763227494381,0.06972349,96336.0,96331.0,0.27178]
[1763227494581,0.26458,96332.0,96331.0,0.002]
[1763227494983,0.26458,96331.0,96330.0,1.50419803]
[1763227495875,0.26358,96331.0,96330.0,1.50219803]
[1763227496485,0.26358,96331.0,96330.0,1.53187269]
[1763227497575,0.26358,96331.0,96330.0,1.53287269]
[1763227498486,0.34688349,96336.0,96335.0,0.28248]
[1763227498683,0.34688349,96336.0,96335.0,0.31215466]
[1763227499483,0.34688349,96336.0,96335.0,0.02967466]
[1763227501290,0.34688349,96336.0,96335.0,0.31215466]
[1763227501675,0.34688349,96336.0,96335.0,0.02967466]
[1763227501877,0.70768349,96336.0,96335.0,4.66e-06]
[1763227502082,0.27716,96325.0,96324.0,0.00015568]
[1763227502291,0.25221286,96325.0,96324.0,0.00015568]
[1763227502485,0.25221286,96325.0,96324.0,0.28263568]
[1763227502983,0.25221286,96325.0,96324.0,0.00015568]
[1763227504084,0.25221286,96325.0,96315.0,0.05518381]
[1763227504383,0.27716,96311.0,96310.0,0.00219803]
[1763227504684,0.27716,96311.0,96310.0,1.50219803]
[1763227504981,0.27716,96311.0,96310.0,0.00219803]
[1763227505186,0.27724878,96311.0,96310.0,0.00219803]
[1763227505383,0.27624878,96311.0,96310.0,0.00219803]
[1763227506781,0.27624878,96311.0,96310.0,0.001]
[1763227508485,0.27716,96302.0,96301.0,0.00015568]
[1763227509787,0.27716,96302.0,96301.0,0.00115568]
[1763227511179,0.95566,96305.0,96285.0,0.3608]
[1763227511180,0.27716,96296.0,96287.0,0.07359044]
[1763227511382,1.1185261,96296.0,96294.0,0.05540338]
[1763227511690,0.86632,96296.0,96291.0,0.05541006]
[1763227511883,0.28281,96287.0,96286.0,0.00025964]
[1763227512079,0.78833,96287.0,96286.0,0.00025964]
[1763227512288,0.78833,96287.0,96277.0,0.00010499]
[1763227512289,0.28281,96278.0,96277.0,0.00010499]
[1763227512990,0.137,96278.0,96277.0,0.27407499]
[1763227513183,0.136,96278.0,96277.0,0.27407499]
[1763227513689,0.28181,96278.0,96277.0,0.27407499]
[1763227514085,0.28181,96278.0,96277.0,0.30254458]
[1763227514582,0.28181,96278.0,96277.0,0.33948392]
[1763227514782,0.28181,96278.0,96277.0,0.30254458]
[1763227514982,0.28181,96278.0,96277.0,0.02857458]
[1763227515594,0.28191089,96278.0,96277.0,0.02857458]
[1763227516486,0.28191089,96278.0,96272.0,0.03693934]
[1763227516691,0.28191089,96278.0,96264.0,1.5]
[1763227516692,0.28281,96265.0,96264.0,1.5]
[1763227518489,0.28281,96263.0,96262.0,0.27406952]
[1763227519591,0.28281,96263.0,96262.0,9.952e-05]
[1763227520988,0.28292519,96263.0,96262.0,9.952e-05]
[1763227521292,0.28281,96256.0,96248.0,1.5]
[1763227521491,1.14889,96256.0,96248.0,1.5]
[1763227522093,1.14889,96256.0,96240.0,0.07558]
[1763227522498,1.14889,96256.0,96241.0,1.5]
[1763227522695,1.14889,96256.0,96255.0,0.00567506]
[1763227526896,0.64361,96256.0,96255.0,0.00567506]
[1763227527198,0.64361,96256.0,96255.0,0.14259506]
[1763227527199,1.14885,96256.0,96255.0,0.14259506]
[1763227527498,1.14885,96256.0,96255.0,0.00567506]
[1763227528201,1.14881,96256.0,96255.0,0.00567506]
[1763227528392,0.00011519,96263.0,96262.0,0.26665]
[1763227528393,0.13227519,96263.0,96262.0,0.26665]
[1763227528598,0.13227519,96263.0,96262.0,0.29381293]
[1763227528798,0.27073519,96263.0,96262.0,0.29381293]
[1763227532702,0.00011519,96263.0,96262.0,0.29381293]
[1763227533000,0.034,96270.0,96262.0,0.29381293]
[1763227533001,0.034,96270.0,96269.0,0.3706039]
[1763227533212,0.034,96270.0,96269.0,0.39776683]
[1763227533402,0.034,96280.0,96273.0,0.26665]
[1763227533602,0.034,96280.0,96273.0,0.29381293]
[1763227534004,0.00023864,96274.0,96273.0,0.29381293]
[1763227535597,0.27085864,96274.0,96273.0,0.02716293]
[1763227536199,0.27085864,96274.0,96273.0,0.29381293]
[1763227538408,0.00023864,96274.0,96273.0,0.29381293]
[1763227538609,0.27085864,96274.0,96273.0,0.29381293]
[1763227543804,0.27085864,96274.0,96273.0,0.02716293]
[1763227544205,0.00023864,96274.0,96273.0,0.29381293]
[1763227547104,0.00023864,96274.0,96273.0,0.39776253]
[1763227548008,0.00023864,96274.0,96273.0,0.29381293]
[1763227549507,0.13239864,96274.0,96273.0,0.29381293]
[1763227549728,0.27085864,96274.0,96273.0,0.34948676]
[1763227550212,0.27085864,96274.0,96273.0,0.29381293]
[1763227550407,0.27085864,96274.0,96273.0,0.02716293]
[1763227551205,0.27085864,96274.0,96273.0,0.29381293]
[1763227551608,0.27085864,96274.0,96273.0,0.02716293]
[1763227552210,0.27085864,96274.0,96273.0,0.16037293]
[1763227552415,0.27085864,96274.0,96273.0,0.29381293]
[1763227552714,0.27085864,96274.0,96273.0,0.02716293]
[1763227553823,0.27085864,96274.0,96273.0,0.29381293]
[1763227554111,0.27085864,96274.0,96273.0,0.06428853]
[1763227555418,0.27085864,96274.0,96273.0,0.33093853]
[1763227556211,0.27085864,96274.0,96273.0,0.29381293]
[1763227557611,0.27085864,96274.0,96273.0,0.02716293]
[1763227560515,0.27085864,96274.0,96273.0,0.06435816]
[1763227560722,0.27085864,96274.0,96273.0,0.02716293]
[1763227561222,0.27085864,96274.0,96273.0,0.06435816]
[1763227561622,0.27085864,96274.0,96273.0,0.02716293]
[1763227562811,0.27085864,96274.0,96272.0,0.03719523]
[1763227563136,0.07439,96248.0,96231.0,0.3608]
[1763227563311,0.323,96232.0,96231.0,0.60436]
[1763227563512,0.60941,96237.0,96236.0,0.24356]
[1763227563719,0.60941,96237.0,96224.0,0.03745]
[1763227563720,9.817e-05,96247.0,96246.0,0.24356]
[1763227564019,9.817e-05,96247.0,96246.0,1.74356]
[1763227564020,0.24870817,96247.0,96246.0,1.74356]
[1763227565019,0.24870817,96247.0,96237.0,0.06293]
[1763227565020,0.24861,96233.0,96232.0,0.48193]
[1763227565216,0.24861,96233.0,96232.0,0.24356]
[1763227565620,0.3608,96238.0,96237.0,0.24356]
[1763227565822,0.034,96240.0,96239.0,0.24356]
[1763227566127,0.24870817,96247.0,96246.0,0.24356]
[1763227566512,0.24861,96237.0,96236.0,0.24356]
[1763227566924,0.24861,96237.0,96232.0,1.5]
[1763227566925,0.24861,96233.0,96232.0,1.5]
[1763227567121,0.43519,96237.0,96215.0,0.1086892]
[1763227567122,0.24861,96231.0,96230.0,0.00219803]
[1763227567322,0.24861,96231.0,96230.0,0.24575803]
[1763227567622,0.64341,96240.0,96239.0,0.12113]
[1763227567825,0.24861,96231.0,96230.0,1.5]
[1763227568125,0.60941,96231.0,96215.0,0.004677]
[1763227568320,0.24861,96221.0,96220.0,0.24575803]
[1763227568621,0.24861,96221.0,96220.0,0.00219803]
[1763227568822,0.24861,96221.0,96220.0,0.24575803]
[1763227569722,0.24861,96221.0,96220.0,0.12332803]
[1763227569927,0.24861,96221.0,96220.0,0.00319803]
[1763227572118,0.24861,96221.0,96220.0,0.12432803]
[1763227572622,0.24861,96221.0,96220.0,0.24887803]
[1763227572822,0.24861,96221.0,96220.0,0.27669363]
[1763227573225,0.24861,96221.0,96220.0,0.24887803]
[1763227575527,0.24861,96221.0,96220.0,0.00319803]
[1763227576331,0.24861,96221.0,96220.0,0.001]
[1763227576531,0.23788,96207.0,96202.0,0.0278156]
[1763227576725,0.59868,96207.0,96206.0,0.24735986]
[1763227576922,0.59868,96213.0,96212.0,0.2471]
[1763227579142,0.59868,96213.0,96212.0,0.2481]
[1763227583144,0.27188,96220.0,96219.0,0.2471]
[1763227583539,0.23788,96220.0,96219.0,0.2471]
[1763227584436,0.23788,96220.0,96219.0,0.2481]
[1763227588448,9.491e-05,96221.0,96220.0,0.22766803]
[1763227588637,0.22352491,96221.0,96220.0,0.22766803]
[1763227589048,0.22352491,96221.0,96220.0,0.25550923]
[1763227589247,0.22352491,96221.0,96220.0,0.22766803]
[1763227590540,0.22352491,96221.0,96220.0,0.22866803]
[1763227594351,0.22352491,96221.0,96220.0,0.26589034]
[1763227595347,0.22352491,96221.0,96220.0,0.26590961]
[1763227596244,0.22352491,96221.0,96220.0,0.22866803]
[1763227601757,0.22352491,96221.0,96220.0,0.00319803]
[1763227602258,0.22352491,96221.0,96220.0,0.04048017]
[1763227602557,0.22352491,96221.0,96220.0,0.00319803]
[1763227602956,0.22352491,96221.0,96220.0,0.001]
[1763227604163,0.22352491,96221.0,96215.0,0.03728214]
[1763227604164,0.22343,96216.0,96215.0,0.03728214]
[1763227604362,0.26062,96208.0,96207.0,0.05558937]
[1763227604565,0.22343,96207.0,96206.0,0.00025986]
[1763227607067,0.22343,96202.0,96201.0,8.651e-05]
[1763227607662,0.22343,96196.0,96195.0,0.02797999]
[1763227607856,0.29056,96194.0,96193.0,0.02797999]
[1763227608052,0.22343,96182.0,96181.0,0.05558937]
[1763227608257,0.22343,96181.0,96180.0,0.00219803]
[1763227608659,0.22354887,96181.0,96180.0,0.00219803]
[1763227609357,0.22354887,96181.0,96180.0,0.03014855]
[1763227609553,0.22354887,96181.0,96180.0,0.00219803]
[1763227610262,0.22354887,96181.0,96180.0,0.03013501]
[1763227610657,0.22354887,96181.0,96180.0,0.02793698]
[1763227610858,0.22343,96180.0,96179.0,0.02793698]
[1763227611251,0.22343,96179.0,96178.0,0.02793698]
[1763227611661,0.29056,96176.0,96175.0,0.00467895]
[1763227612464,0.22343,96167.0,96166.0,0.00025997]
[1763227612658,0.58423,96167.0,96166.0,0.00025997]
[1763227612858,0.58436,96167.0,96166.0,0.00025997]
[1763227613463,0.58436,96167.0,96166.0,0.22572997]
[1763227615466,0.58436,96167.0,96166.0,0.10964997]
[1763227615766,0.58436,96167.0,96166.0,0.00025997]
[1763227620069,0.20605,96142.0,96141.0,0.5598]
[1763227620368,0.00012989,96142.0,96141.0,0.5598]
[1763227621770,0.00012989,96142.0,96141.0,0.5608]
[1763227624366,0.00015594,96151.0,96141.0,0.5608]
[1763227624367,0.00015594,96151.0,96150.0,0.199]
[1763227624670,0.00015594,96151.0,96150.0,0.20119803]
[1763227625265,0.034,96160.0,96159.0,0.3453128]
[1763227625471,0.56685,96179.0,96178.0,0.199]
[1763227625668,0.56685,96179.0,96166.0,0.05887]
[1763227625669,0.09869,96167.0,96166.0,0.3608]
[1763227625969,0.26535,96168.0,96167.0,0.199]
[1763227627360,0.20605,96168.0,96167.0,0.199]
[1763227627556,0.26535,96168.0,96167.0,0.199]
[1763227627757,0.20605,96160.0,96159.0,0.2]
[1763227628768,0.20605,96160.0,96159.0,0.199]
[1763227629665,0.26535,96160.0,96159.0,0.10061]
[1763227630280,0.20605,96160.0,96159.0,0.2]
[1763227634770,0.09869,96160.0,96159.0,0.25887]
[1763227635167,0.19733,96160.0,96159.0,0.25887]
[1763227635769,0.19949,96168.0,96160.0,0.00219803]
[1763227635972,0.19949,96168.0,96167.0,0.19921]
[1763227636270,0.19949,96168.0,96165.0,0.03731855]
[1763227636271,0.46165,96170.0,96169.0,0.19921]
[1763227636566,0.19949,96170.0,96169.0,0.19921]
[1763227638277,0.10100594,96177.0,96176.0,0.19921]
[1763227638479,0.00015594,96177.0,96176.0,0.19921]
[1763227638972,0.19964594,96177.0,96176.0,0.19921]
[1763227641777,0.19964594,96177.0,96176.0,0.25524411]
[1763227642178,0.19964594,96177.0,96176.0,0.19921]
[1763227644971,0.19949,96175.0,96173.0,0.05603411]
[1763227645181,0.19949,96171.0,96170.0,0.00219803]
[1763227646277,0.19949,96171.0,96170.0,0.20140803]
[1763227647085,0.19949,96171.0,96170.0,0.23874813]
[1763227647279,0.19949,96171.0,96170.0,0.20140803]
[1763227647485,0.19949,96171.0,96170.0,0.23874996]
[1763227648277,0.19949,96171.0,96170.0,0.20140803]
[1763227652988,0.10085,96171.0,96170.0,0.20140803]
[1763227653384,0.36095594,96177.0,96170.0,0.20140803]
[1763227653591,0.55427594,96177.0,96176.0,0.18379]
[1763227653889,0.00015594,96177.0,96176.0,0.18379]
[1763227654285,0.00015594,96177.0,96176.0,0.23982411]
[1763227655089,0.19347594,96177.0,96176.0,0.23982411]
[1763227655485,0.19347594,96177.0,96176.0,0.18379]
[1763227656189,0.19347594,96177.0,96176.0,0.23981756]
[1763227657694,0.19347594,96177.0,96176.0,0.18379]
[1763227657892,0.19347594,96177.0,96176.0,0.23981618]
[1763227659988,0.19347594,96177.0,96176.0,0.18379]
[1763227660892,0.19347594,96177.0,96176.0,0.2398117]
[1763227662189,0.19347594,96177.0,96176.0,0.18379]
[1763227662695,0.00015594,96177.0,96176.0,0.18379]
[1763227663693,0.19347594,96177.0,96176.0,0.18379]
[1763227664285,0.19347594,96177.0,96176.0,0.23981655]
[1763227664984,0.19347594,96177.0,96176.0,0.18379]
[1763227666795,0.19347594,96177.0,96176.0,0.09208]
[1763227667294,0.19347594,96177.0,96176.0,0.18379]
[1763227667482,0.19347594,96177.0,96170.0,0.41682655]
[1763227667682,0.19332,96171.0,96170.0,0.60281458]
[1763227668087,0.19332,96171.0,96170.0,0.54678803]
[1763227668695,0.19332,96170.0,96169.0,0.05602655]
[1763227668987,0.19332,96167.0,96166.0,0.09208]
[1763227670301,0.19332,96165.0,96164.0,0.14810655]
[1763227670708,0.19332,96165.0,96164.0,0.23981655]
[1763227671895,0.19332,96165.0,96164.0,0.18379]
[1763227672397,0.45521,96172.0,96171.0,0.18379]
[1763227672702,0.09456594,96177.0,96176.0,0.18379]
[1763227672893,0.19347594,96177.0,96176.0,0.18379]
[1763227681908,0.16759,96172.0,96171.0,0.08528]